[Event "DVM U12w 2023"]
[Site "Magdeburg"]
[Date "2023.12.28"]
[Round "3"]
[White "Winkler, Frida"]
[Black "Ruddat, Maila"]
[Result "1-0"]
[WhiteElo "1298"]
[BlackElo "1187"]
[PlyCount "165"]
[EventDate "2022.12.27"]
[EventType "team-tourn"]
[EventRounds "7"]
[EventCountry "GER"]
[TimeControl "40/5400+30:1800+30"]
[WhiteClock "0:35:39"]
[BlackClock "1:22:27"]

1. e4 {[%emt 0:00:01]} e5 {[%emt 0:00:07]} 2. Nf3 {[%emt 0:00:07]} Nc6 {[%emt 0:00:11]} 3. Bc4 {[%emt 0:00:08]} Bc5 {[%emt 0:00:12]} 4. b4 {[%emt 0:00:13]} Bxb4 {[%emt 0:00:14]} 5. c3 {[%emt 0:00:12]} Ba5 {[%emt 0:00:16]} 6. d4 {[%emt 0:00:09]} d6 {[%emt 0:00:51]} 7. Qb3 {[%emt 0:02:49]} Qd7 {[%emt 0:02:28]} 8. O-O {[%emt 0:01:34]} Bb6 {[%emt 0:01:33]} 9. Bb5 {[%emt 0:01:35]} a6 {[%emt 0:01:40]} 10. Ba4 {[%emt 0:00:11]} Ba7 {[%emt 0:00:18]} 11. d5 {[%emt 0:00:14]} b5 {[%emt 0:00:14]} 12. dxc6 {[%emt 0:00:57]} Qxc6 {[%emt 0:00:34]} 13. Bxb5 {[%emt 0:05:26]} Qxb5 {[%emt 0:01:01]} 14. Qxb5+ {[%emt 0:01:06]} axb5 {[%emt 0:00:14]} 15. Na3 {[%emt 0:00:21]} c6 {[%emt 0:00:30]} 16. Rd1 {[%emt 0:00:12]} Bc5 {[%emt 0:00:32]} 17. Nc2 {[%emt 0:01:35]} Nf6 {[%emt 0:00:23]} 18. Nd2 {[%emt 0:07:56]} Ng4 {[%emt 0:02:26]} 19. Rf1 {[%emt 0:00:33]} f5 {[%emt 0:02:02]} 20. h3 {[%emt 0:06:03]} Nf6 {[%emt 0:00:56]} 21. exf5 {[%emt 0:00:20]} Bxf5 {[%emt 0:00:45]} 22. Ne3 {[%emt 0:00:16]} Bxe3 {[%emt 0:00:52]} 23. fxe3 {[%emt 0:00:11]} Be6 {[%emt 0:00:42]} 24. a3 {[%emt 0:01:32]} O-O {[%emt 0:00:52]} 25. Rd1 {[%emt 0:01:33]} Nd5 {[%emt 0:01:19]} 26. Ne4 {[%emt 0:01:34]} Rad8 {[%emt 0:00:38]} 27. Nxd6 {[%emt 0:14:50]} Nxc3 {[%emt 0:02:03]} 28. Rd3 {[%emt 0:00:42]} Nd5 {[%emt 0:01:31]} 29. Nb7 {[%emt 0:01:00]} Ra8 {[%emt 0:01:07]} 30. Nc5 {[%emt 0:00:46]} Bf5 {[%emt 0:00:40]} 31. e4 {[%emt 0:01:02]} Nb4 {[%emt 0:02:19]} 32. Rb3 {[%emt 0:00:37]} Nc2 {[%emt 0:00:40]} 33. Ra2 {[%emt 0:02:31]} Nd4 {[%emt 0:00:16]} 34. exf5 {[%emt 0:02:13]} Nxb3 {[%emt 0:00:16]} 35. Nxb3 {[%emt 0:00:09]} Rxf5 {[%emt 0:00:14]} 36. Rc2 {[%emt 0:00:44]} b4 {[%emt 0:00:56]} 37. axb4 {[%emt 0:01:30]} Rb8 {[%emt 0:01:03]} 38. Ba3 {[%emt 0:01:56]} Ra8 {[%emt 0:00:53]} 39. Na5 {[%emt 0:00:14]} Re8 {[%emt 0:00:21]} 40. Nxc6 {[%emt 0:01:20]} e4 {[%emt 0:00:19]} 41. b5 {[%emt 0:30:55]} Rxb5 {[%emt 0:30:31]} 42. Ne7+ {[%emt 0:00:56]} Kh8 {[%emt 0:00:29]} 43. Re2 {[%emt 0:00:58]} Re5 {[%emt 0:00:11]} 44. Nc6 {[%emt 0:02:00]} R5e6 {[%emt 0:00:27]} 45. Nd4 {[%emt 0:00:27]} Re5 {[%emt 0:00:30]} 46. Nc6 {[%emt 0:02:16]} R5e6 {[%emt 0:00:13]} 47. Nd4 {[%emt 0:00:21]} Re5 {[%emt 0:00:12]} 48. Bb2 {[%emt 0:00:47]} R5e7 {[%emt 0:00:34]} 49. Nf5 {[%emt 0:00:22]} Ra7 {[%emt 0:00:51]} 50. Bd4 {[%emt 0:00:44]} Rd7 {[%emt 0:00:32]} 51. Kf2 {[%emt 0:01:13]} Kg8 {[%emt 0:00:25]} 52. Ke3 {[%emt 0:00:43]} g6 {[%emt 0:00:16]} 53. Nh6+ {[%emt 0:00:11]} Kf8 {[%emt 0:00:12]} 54. Rf2+ {[%emt 0:00:50]} Ke7 {[%emt 0:00:35]} 55. Bc5+ {[%emt 0:01:22]} Kd8 {[%emt 0:00:44]} 56. Nf7+ {[%emt 0:00:43]} Kc7 {[%emt 0:00:25]} 57. Bd4 {[%emt 0:01:54]} Ree7 {[%emt 0:00:40]} 58. Ne5 {[%emt 0:00:24]} Rd5 {[%emt 0:00:32]} 59. Kxe4 {[%emt 0:00:34]} Rb5 {[%emt 0:00:32]} 60. Rc2+ {[%emt 0:00:31]} Kb7 {[%emt 0:00:27]} 61. Bc5 {[%emt 0:00:58]} Rc7 {[%emt 0:00:14]} 62. Kd5 {[%emt 0:00:51]} h5 {[%emt 0:00:13]} 63. Nxg6 {[%emt 0:00:58]} h4 {[%emt 0:00:30]} 64. Nxh4 {[%emt 0:01:10]} Kb8 {[%emt 0:00:18]} 65. g4 {[%emt 0:01:21]} Kb7 {[%emt 0:00:06]} 66. Nf5 {[%emt 0:00:24]} Kb8 {[%emt 0:00:11]} 67. Nd4 {[%emt 0:00:24]} Ra5 {[%emt 0:00:30]} 68. Nc6+ {[%emt 0:00:10]} Kc8 {[%emt 0:00:13]} 69. Nxa5 {[%emt 0:00:18]} Rd7+ {[%emt 0:00:12]} 70. Bd6+ {[%emt 0:00:15]} Kd8 {[%emt 0:00:14]} 71. Rf2 {[%emt 0:00:59]} Kc8 {[%emt 0:00:20]} 72. Rf8+ {[%emt 0:00:17]} Rd8 {[%emt 0:00:09]} 73. Nc6 {[%emt 0:00:58]} Rxf8 {[%emt 0:00:17]} 74. Bxf8 {[%emt 0:00:00]} Kd7 {[%emt 0:00:08]} 75. Ne5+ {[%emt 0:00:44]} Ke8 {[%emt 0:00:17]} 76. Ba3 {[%emt 0:00:16]} Kd8 {[%emt 0:00:12]} 77. g5 {[%emt 0:00:07]} Ke8 {[%emt 0:00:06]} 78. g6 {[%emt 0:00:07]} Kd8 {[%emt 0:00:11]} 79. g7 {[%emt 0:00:09]} Kc8 {[%emt 0:00:13]} 80. g8=Q+ {[%emt 0:00:07]} Kb7 {[%emt 0:00:11]} 81. Qe6 {[%emt 0:00:25]} Kc7 {[%emt 0:00:16]} 82. Qc6+ {[%emt 0:00:20]} Kd8 {[%emt 0:00:16]} 83. Qd7# {[%emt 0:01:38] normal} 1-0

[Event "DVM U12w 2023"]
[Site "Magdeburg"]
[Date "2023.12.28"]
[Round "3"]
[White "Fruth, Julia"]
[Black "Mersmann, Jasmin"]
[Result "1-0"]
[WhiteElo "1296"]
[BlackElo "1131"]
[PlyCount "67"]
[EventDate "2022.12.27"]
[EventType "team-tourn"]
[EventRounds "7"]
[EventCountry "GER"]
[TimeControl "40/5400+30:1800+30"]
[WhiteClock "0:36:50"]
[BlackClock "0:45:46"]

1. e4 {[%emt 0:00:03]} e5 {[%emt 0:00:04]} 2. Nf3 {[%emt 0:00:09]} Nc6 {[%emt 0:00:09]} 3. d4 {[%emt 0:00:12]} exd4 {[%emt 0:00:36]} 4. Nxd4 {[%emt 0:00:08]} Nxd4 {[%emt 0:03:24]} 5. Qxd4 {[%emt 0:00:11]} d6 {[%emt 0:00:51]} 6. Nc3 {[%emt 0:00:48]} Be6 {[%emt 0:01:01]} 7. Bc4 {[%emt 0:05:09]} Bxc4 {[%emt 0:00:48]} 8. Qxc4 {[%emt 0:00:11]} Be7 {[%emt 0:00:29]} 9. Qb5+ {[%emt 0:02:23]} Kf8 {[%emt 0:03:06]} 10. Qxb7 {[%emt 0:02:37]} Nf6 {[%emt 0:01:34]} 11. O-O {[%emt 0:01:48]} h5 {[%emt 0:02:28]} 12. b3 {[%emt 0:01:39]} h4 {[%emt 0:00:55]} 13. h3 {[%emt 0:00:39]} Nd7 {[%emt 0:02:40]} 14. Nd5 {[%emt 0:02:44]} Bf6 {[%emt 0:05:16]} 15. Nxf6 {[%emt 0:00:59]} Nxf6 {[%emt 0:00:20]} 16. Bb2 {[%emt 0:01:02]} Nd7 {[%emt 0:09:10]} 17. Rad1 {[%emt 0:03:17]} Rb8 {[%emt 0:05:01]} 18. Qxa7 {[%emt 0:07:46]} Nc5 {[%emt 0:00:31]} 19. Qa5 {[%emt 0:08:14]} f6 {[%emt 0:00:58]} 20. e5 {[%emt 0:02:33]} fxe5 {[%emt 0:01:54]} 21. Bxe5 {[%emt 0:01:09]} Rh5 {[%emt 0:00:31]} 22. Bd4 {[%emt 0:03:12]} Qe7 {[%emt 0:01:53]} 23. b4 {[%emt 0:03:04]} Qg5 {[%emt 0:04:08]} 24. bxc5 {[%emt 0:02:46]} dxc5 {[%emt 0:02:29]} 25. Qxc7 {[%emt 0:03:10]} Ra8 {[%emt 0:01:39]} 26. Be3 {[%emt 0:01:31]} Qf5 {[%emt 0:00:39]} 27. Rd8+ {[%emt 0:01:49]} Rxd8 {[%emt 0:00:14]} 28. Qxd8+ {[%emt 0:00:08]} Kf7 {[%emt 0:00:10]} 29. Qc7+ {[%emt 0:03:11]} Kg8 {[%emt 0:00:15]} 30. Qd8+ {[%emt 0:02:56]} Kf7 {[%emt 0:00:32]} 31. Qd3 {[%emt 0:02:01]} Qe5 {[%emt 0:01:15]} 32. Re1 {[%emt 0:01:37]} Rh6 {[%emt 0:02:49]} 33. Bd2 {[%emt 0:01:03]} Qd6 {[%emt 0:03:25]} 34. Bxh6 {[%emt 0:00:31] normal} 1-0

[Event "DVM U12w 2023"]
[Site "Magdeburg"]
[Date "2023.12.28"]
[Round "3"]
[White "Grunert, Greta"]
[Black "Hofmeier, Viktoria"]
[Result "1/2-1/2"]
[WhiteElo "1288"]
[BlackElo "1408"]
[PlyCount "83"]
[EventDate "2022.12.27"]
[EventType "team-tourn"]
[EventRounds "7"]
[EventCountry "GER"]
[TimeControl "40/5400+30:1800+30"]
[WhiteClock "0:06:50"]
[BlackClock "0:30:59"]

1. e4 {[%emt 0:00:03]} e5 {[%emt 0:00:09]} 2. Nf3 {[%emt 0:00:08]} Nc6 {[%emt 0:00:16]} 3. Bb5 {[%emt 0:00:13]} a6 {[%emt 0:00:26]} 4. Ba4 {[%emt 0:00:10]} Nf6 {[%emt 0:00:26]} 5. O-O {[%emt 0:00:13]} Be7 {[%emt 0:00:30]} 6. Re1 {[%emt 0:00:55]} b5 {[%emt 0:00:36]} 7. Bb3 {[%emt 0:00:10]} d6 {[%emt 0:00:36]} 8. c3 {[%emt 0:00:32]} O-O {[%emt 0:00:34]} 9. h3 {[%emt 0:01:46]} Nb8 {[%emt 0:01:10]} 10. d4 {[%emt 0:00:46]} Nbd7 {[%emt 0:00:00]} 11. Nbd2 {[%emt 0:00:58]} Re8 {[%emt 0:01:41]} 12. Nf1 {[%emt 0:01:03]} Bb7 {[%emt 0:01:41]} 13. Ng3 {[%emt 0:01:34]} h6 {[%emt 0:01:26]} 14. Qd3 {[%emt 0:10:57]} Bf8 {[%emt 0:04:55]} 15. d5 {[%emt 0:06:45]} Nc5 {[%emt 0:02:35]} 16. Qd1 {[%emt 0:04:31]} Nxb3 {[%emt 0:07:02]} 17. Qxb3 {[%emt 0:00:28]} c6 {[%emt 0:03:01]} 18. c4 {[%emt 0:04:19]} cxd5 {[%emt 0:04:50]} 19. cxd5 {[%emt 0:01:11]} Rc8 {[%emt 0:01:10]} 20. Bd2 {[%emt 0:04:51]} Qd7 {[%emt 0:02:59]} 21. Bb4 {[%emt 0:04:03]} Be7 {[%emt 0:05:05]} 22. Qa3 {[%emt 0:05:22]} Ra8 {[%emt 0:04:33]} 23. Nf5 {[%emt 0:08:00]} Red8 {[%emt 0:01:43]} 24. Nxe5 {[%emt 0:03:34]} dxe5 {[%emt 0:03:54]} 25. Nxe7+ {[%emt 0:05:23]} Kh8 {[%emt 0:00:13]} 26. Nf5 {[%emt 0:00:49]} Nxd5 {[%emt 0:02:09]} 27. Rad1 {[%emt 0:14:36]} Qe6 {[%emt 0:01:40]} 28. Nd6 {[%emt 0:06:18]} Nxb4 {[%emt 0:05:39]} 29. Nxb7 {[%emt 0:00:45]} Rxd1 {[%emt 0:00:27]} 30. Rxd1 {[%emt 0:00:12]} Rb8 {[%emt 0:05:02]} 31. Nc5 {[%emt 0:01:01]} Qc4 {[%emt 0:02:20]} 32. Nxa6 {[%emt 0:02:50]} Nxa6 {[%emt 0:05:54]} 33. Qxa6 {[%emt 0:00:17]} Qxe4 {[%emt 0:00:23]} 34. Qa7 {[%emt 0:01:19]} Qb7 {[%emt 0:00:46]} 35. Rd7 {[%emt 0:01:28]} Qxa7 {[%emt 0:00:19]} 36. Rxa7 {[%emt 0:00:05]} f6 {[%emt 0:00:15]} 37. Ra3 {[%emt 0:01:26]} b4 {[%emt 0:01:07]} 38. Rb3 {[%emt 0:01:20]} Ra8 {[%emt 0:00:33]} 39. a3 {[%emt 0:01:33]} bxa3 {[%emt 0:00:28]} 40. Rxa3 {[%emt 0:00:14]} Rb8 {[%emt 0:00:17]} 41. b3 {[%emt 0:32:09]} Kg8 {[%emt 0:31:11]} 42. Kf1 {[%emt 0:00:23] normal} 1/2-1/2

[Event "DVM U12w 2023"]
[Site "Magdeburg"]
[Date "2023.12.28"]
[Round "3"]
[White "Kuehne, Malin"]
[Black "Noennig, Lotte"]
[Result "0-1"]
[WhiteElo "1264"]
[BlackElo "1345"]
[PlyCount "100"]
[EventDate "2022.12.27"]
[EventType "team-tourn"]
[EventRounds "7"]
[EventCountry "GER"]
[TimeControl "40/5400+30:1800+30"]
[WhiteClock "0:16:09"]
[BlackClock "1:06:23"]

1. d4 {[%emt 0:00:02]} d5 {[%emt 0:00:08]} 2. Nf3 {[%emt 0:00:07]} Nf6 {[%emt 0:00:16]} 3. Bf4 {[%emt 0:00:22]} Bf5 {[%emt 0:00:52]} 4. e3 {[%emt 0:00:53]} e6 {[%emt 0:01:14]} 5. c3 {[%emt 0:01:24]} Be7 {[%emt 0:00:57]} 6. Be2 {[%emt 0:02:33]} c5 {[%emt 0:01:01]} 7. Bxb8 {[%emt 0:07:57]} Rxb8 {[%emt 0:00:17]} 8. Bb5+ {[%emt 0:00:11]} Nd7 {[%emt 0:00:33]} 9. Ne5 {[%emt 0:00:46]} O-O {[%emt 0:03:14]} 10. Nxd7 {[%emt 0:04:10]} a6 {[%emt 0:00:46]} 11. Nxf8 {[%emt 0:03:29]} axb5 {[%emt 0:00:28]} 12. Nxe6 {[%emt 0:01:33]} fxe6 {[%emt 0:00:41]} 13. dxc5 {[%emt 0:01:28]} Bxc5 {[%emt 0:00:24]} 14. Nd2 {[%emt 0:06:34]} Qg5 {[%emt 0:03:02]} 15. Qf3 {[%emt 0:12:51]} Bd6 {[%emt 0:01:37]} 16. h3 {[%emt 0:06:02]} Rf8 {[%emt 0:01:04]} 17. Qe2 {[%emt 0:02:00]} Qxg2 {[%emt 0:01:07]} 18. Qf1 {[%emt 0:01:08]} Qg5 {[%emt 0:01:45]} 19. f4 {[%emt 0:04:21]} Qh5 {[%emt 0:01:07]} 20. Qe2 {[%emt 0:05:10]} Qh4+ {[%emt 0:00:44]} 21. Qf2 {[%emt 0:00:21]} Qh5 {[%emt 0:00:23]} 22. Nf3 {[%emt 0:04:06]} Be4 {[%emt 0:00:45]} 23. Rf1 {[%emt 0:02:13]} e5 {[%emt 0:01:32]} 24. Ng5 {[%emt 0:02:27]} exf4 {[%emt 0:01:09]} 25. Nxe4 {[%emt 0:01:48]} dxe4 {[%emt 0:01:25]} 26. exf4 {[%emt 0:03:48]} Bxf4 {[%emt 0:00:59]} 27. Qg2 {[%emt 0:02:10]} e3 {[%emt 0:01:15]} 28. Qg4 {[%emt 0:03:03]} Qe5 {[%emt 0:01:41]} 29. Ke2 {[%emt 0:02:32]} Qe4 {[%emt 0:01:51]} 30. Rac1 {[%emt 0:02:04]} Qc4+ {[%emt 0:01:28]} 31. Kf3 {[%emt 0:03:36]} e2 {[%emt 0:05:05]} 32. Rfe1 {[%emt 0:01:06]} Bxc1+ {[%emt 0:00:52]} 33. Kg2 {[%emt 0:01:03]} Qxg4+ {[%emt 0:00:38]} 34. hxg4 {[%emt 0:00:06]} Re8 {[%emt 0:01:02]} 35. Kf2 {[%emt 0:00:37]} Be3+ {[%emt 0:00:58]} 36. Kxe2 {[%emt 0:00:47]} Bc1+ {[%emt 0:00:24]} 37. Kd1 {[%emt 0:00:17]} Rxe1+ {[%emt 0:00:06]} 38. Kxe1 {[%emt 0:00:05]} Bxb2 {[%emt 0:00:13]} 39. Kd2 {[%emt 0:00:10]} Ba3 {[%emt 0:00:19]} 40. Kc2 {[%emt 0:00:38]} g6 {[%emt 0:00:39]} 41. Kb3 {[%emt 0:30:40]} Bc5 {[%emt 0:30:20]} 42. c4 {[%emt 0:00:18]} b4 {[%emt 0:00:48]} 43. Kc2 {[%emt 0:00:42]} Kf7 {[%emt 0:00:36]} 44. Kd3 {[%emt 0:00:17]} Kf6 {[%emt 0:00:24]} 45. Ke4 {[%emt 0:00:10]} h5 {[%emt 0:00:36]} 46. gxh5 {[%emt 0:00:15]} gxh5 {[%emt 0:00:24]} 47. Kf4 {[%emt 0:00:12]} Bd6+ {[%emt 0:01:00]} 48. Kf3 {[%emt 0:00:14]} h4 {[%emt 0:00:38]} 49. Kg4 {[%emt 0:00:07]} Bg3 {[%emt 0:00:07]} 50. Kh3 {[%emt 0:00:28]} Ke5 {[%emt 0:00:13] normal} 0-1

[Event "DVM U12w 2023"]
[Site "Magdeburg"]
[Date "2023.12.28"]
[Round "3"]
[White "Roessling, Laura Marie"]
[Black "Hladeniuk, Yelyzaveta"]
[Result "1/2-1/2"]
[WhiteElo "1232"]
[BlackElo "1362"]
[PlyCount "89"]
[EventDate "2022.12.27"]
[EventType "team-tourn"]
[EventRounds "7"]
[EventCountry "GER"]
[TimeControl "40/5400+30:1800+30"]
[WhiteClock "0:29:09"]
[BlackClock "0:34:21"]

1. e4 {[%emt 0:00:03]} c6 {[%emt 0:00:08]} 2. c4 {[%emt 0:00:21]} d5 {[%emt 0:01:16]} 3. cxd5 {[%emt 0:00:23]} cxd5 {[%emt 0:00:10]} 4. exd5 {[%emt 0:00:14]} Qxd5 {[%emt 0:00:16]} 5. Nc3 {[%emt 0:00:54]} Qd8 {[%emt 0:00:55]} 6. d4 {[%emt 0:00:18]} Nf6 {[%emt 0:00:21]} 7. Nf3 {[%emt 0:00:16]} Bg4 {[%emt 0:00:20]} 8. Bc4 {[%emt 0:00:33]} e6 {[%emt 0:02:58]} 9. Qa4+ {[%emt 0:02:14]} Nbd7 {[%emt 0:01:26]} 10. Ne5 {[%emt 0:01:17]} a6 {[%emt 0:01:20]} 11. Nxg4 {[%emt 0:05:52]} Nxg4 {[%emt 0:00:28]} 12. d5 {[%emt 0:01:08]} e5 {[%emt 0:07:41]} 13. O-O {[%emt 0:02:35]} Bd6 {[%emt 0:06:46]} 14. Be2 {[%emt 0:03:27]} Ngf6 {[%emt 0:01:14]} 15. Qb3 {[%emt 0:01:56]} b5 {[%emt 0:02:34]} 16. a4 {[%emt 0:01:24]} Nc5 {[%emt 0:01:47]} 17. Qd1 {[%emt 0:00:52]} b4 {[%emt 0:02:07]} 18. Na2 {[%emt 0:02:37]} a5 {[%emt 0:01:16]} 19. Bb5+ {[%emt 0:01:41]} Ncd7 {[%emt 0:01:01]} 20. Bg5 {[%emt 0:00:10]} Ra7 {[%emt 0:02:01]} 21. Rc1 {[%emt 0:01:16]} O-O {[%emt 0:01:58]} 22. Rc6 {[%emt 0:01:00]} Nb8 {[%emt 0:03:30]} 23. Rc4 {[%emt 0:04:00]} Rc7 {[%emt 0:03:15]} 24. Qc2 {[%emt 0:02:55]} Nbd7 {[%emt 0:06:00]} 25. Bxd7 {[%emt 0:02:42]} Rxd7 {[%emt 0:00:37]} 26. Rc1 {[%emt 0:04:58]} h6 {[%emt 0:02:44]} 27. Bxf6 {[%emt 0:04:14]} Qxf6 {[%emt 0:00:16]} 28. Rc6 {[%emt 0:00:32]} Qf4 {[%emt 0:01:18]} 29. g3 {[%emt 0:05:41]} Qf3 {[%emt 0:00:24]} 30. Qc4 {[%emt 0:02:07]} Be7 {[%emt 0:02:03]} 31. Rc7 {[%emt 0:02:56]} Rxc7 {[%emt 0:00:29]} 32. Qxc7 {[%emt 0:00:10]} Qxd5 {[%emt 0:00:14]} 33. Qxe7 {[%emt 0:00:17]} Qxa2 {[%emt 0:00:40]} 34. Qxe5 {[%emt 0:00:06]} Qxa4 {[%emt 0:00:12]} 35. Qc5 {[%emt 0:04:51]} Qa2 {[%emt 0:01:04]} 36. Rc2 {[%emt 0:00:56]} b3 {[%emt 0:00:34]} 37. Re2 {[%emt 0:01:33]} a4 {[%emt 0:01:32]} 38. Qa5 {[%emt 0:00:56]} Qb1+ {[%emt 0:05:19]} 39. Kg2 {[%emt 0:00:42]} Qd3 {[%emt 0:00:25]} 40. Re3 {[%emt 0:01:30]} Qd4 {[%emt 0:00:50]} 41. Re2 {[%emt 0:30:54]} Rd8 {[%emt 0:34:16]} 42. Qa6 {[%emt 0:08:18]} Qd3 {[%emt 0:01:18]} 43. Qxd3 {[%emt 0:02:35]} Rxd3 {[%emt 0:02:55]} 44. Re8+ {[%emt 0:00:22]} Kh7 {[%emt 0:00:11]} 45. Ra8 {[%emt 0:00:05] normal} 1/2-1/2

[Event "DVM U12w 2023"]
[Site "Magdeburg"]
[Date "2023.12.28"]
[Round "3"]
[White "Gerth, Lydia"]
[Black "Shakhimardanova, Nigina"]
[Result "1-0"]
[WhiteElo "1214"]
[BlackElo "1067"]
[PlyCount "81"]
[EventDate "2022.12.27"]
[EventType "team-tourn"]
[EventRounds "7"]
[EventCountry "GER"]
[TimeControl "40/5400+30:1800+30"]
[WhiteClock "1:17:34"]
[BlackClock "1:31:55"]

1. e4 {[%emt 0:00:02]} e5 {[%emt 0:00:03]} 2. Nf3 {[%emt 0:00:06]} Nf6 {[%emt 0:00:04]} 3. Nxe5 {[%emt 0:00:29]} d6 {[%emt 0:00:03]} 4. Nf3 {[%emt 0:00:13]} Nxe4 {[%emt 0:00:40]} 5. Bc4 {[%emt 0:00:22]} d5 {[%emt 0:00:09]} 6. Be2 {[%emt 0:01:23]} Bc5 {[%emt 0:00:16]} 7. d4 {[%emt 0:02:15]} Bd6 {[%emt 0:00:30]} 8. Nbd2 {[%emt 0:03:06]} Bg4 {[%emt 0:00:19]} 9. Nxe4 {[%emt 0:02:42]} dxe4 {[%emt 0:00:07]} 10. Ne5 {[%emt 0:00:37]} Bxe5 {[%emt 0:01:00]} 11. Bxg4 {[%emt 0:01:55]} Bxd4 {[%emt 0:00:09]} 12. c3 {[%emt 0:00:19]} Bf6 {[%emt 0:00:27]} 13. Qxd8+ {[%emt 0:00:54]} Bxd8 {[%emt 0:00:21]} 14. O-O {[%emt 0:00:43]} O-O {[%emt 0:00:06]} 15. Re1 {[%emt 0:00:20]} Re8 {[%emt 0:00:06]} 16. Bf4 {[%emt 0:00:10]} c5 {[%emt 0:00:18]} 17. Rad1 {[%emt 0:00:17]} Bf6 {[%emt 0:00:57]} 18. Bf3 {[%emt 0:01:50]} Nc6 {[%emt 0:01:23]} 19. Bxe4 {[%emt 0:00:56]} g5 {[%emt 0:00:24]} 20. Bg3 {[%emt 0:00:58]} Re6 {[%emt 0:01:04]} 21. Rd2 {[%emt 0:02:10]} Rae8 {[%emt 0:00:41]} 22. Rde2 {[%emt 0:01:02]} Bg7 {[%emt 0:00:10]} 23. Bf3 {[%emt 0:02:08]} Rxe2 {[%emt 0:03:34]} 24. Rxe2 {[%emt 0:00:05]} Rd8 {[%emt 0:00:28]} 25. h4 {[%emt 0:01:46]} gxh4 {[%emt 0:00:40]} 26. Bxh4 {[%emt 0:00:27]} Rd1+ {[%emt 0:00:03]} 27. Kh2 {[%emt 0:00:13]} Be5+ {[%emt 0:00:32]} 28. Bg3 {[%emt 0:00:25]} Bg7 {[%emt 0:00:29]} 29. Re8+ {[%emt 0:00:09]} Bf8 {[%emt 0:00:13]} 30. Bxd1 {[%emt 0:00:06]} b5 {[%emt 0:00:40]} 31. Bd6 {[%emt 0:00:42]} Kg7 {[%emt 0:00:28]} 32. Bxf8+ {[%emt 0:00:25]} Kf6 {[%emt 0:00:05]} 33. Bxc5 {[%emt 0:01:03]} a5 {[%emt 0:00:24]} 34. Bf3 {[%emt 0:00:46]} b4 {[%emt 0:00:55]} 35. Bxc6 {[%emt 0:00:25]} bxc3 {[%emt 0:00:11]} 36. bxc3 {[%emt 0:00:09]} a4 {[%emt 0:00:12]} 37. Kg3 {[%emt 0:00:51]} a3 {[%emt 0:00:04]} 38. Kf4 {[%emt 0:00:22]} h5 {[%emt 0:00:04]} 39. Be4 {[%emt 0:00:19]} Kg7 {[%emt 0:00:13]} 40. Bd4+ {[%emt 0:00:07]} Kh6 {[%emt 0:00:03]} 41. Rh8# {[%emt 0:30:09] normal} 1-0

[Event "DVM U12w 2023"]
[Site "Magdeburg"]
[Date "2023.12.28"]
[Round "3"]
[White "Berger, Jennifer"]
[Black "Mauhs, Helena"]
[Result "1-0"]
[WhiteElo "1210"]
[BlackElo "1194"]
[PlyCount "55"]
[EventDate "2022.12.27"]
[EventType "team-tourn"]
[EventRounds "7"]
[EventCountry "GER"]
[TimeControl "40/5400+30:1800+30"]
[WhiteClock "0:43:11"]
[BlackClock "0:18:18"]

1. e4 {[%emt 0:00:04]} e5 {[%emt 0:00:06]} 2. Nf3 {[%emt 0:00:07]} Nc6 {[%emt 0:00:09]} 3. d4 {[%emt 0:00:07]} exd4 {[%emt 0:00:08]} 4. Nxd4 {[%emt 0:00:06]} Qh4 {[%emt 0:02:11]} 5. Nb5 {[%emt 0:13:55]} Qd8 {[%emt 0:12:29]} 6. N1c3 {[%emt 0:01:42]} Bc5 {[%emt 0:03:44]} 7. Nd5 {[%emt 0:00:19]} Bb6 {[%emt 0:04:01]} 8. Bd3 {[%emt 0:03:10]} d6 {[%emt 0:04:02]} 9. O-O {[%emt 0:02:57]} Nge7 {[%emt 0:01:51]} 10. Re1 {[%emt 0:01:49]} O-O {[%emt 0:02:22]} 11. Qh5 {[%emt 0:02:22]} h6 {[%emt 0:08:12]} 12. Bxh6 {[%emt 0:11:59]} Ng6 {[%emt 0:11:01]} 13. Bg5 {[%emt 0:05:01]} Qd7 {[%emt 0:05:11]} 14. h3 {[%emt 0:01:24]} Nce5 {[%emt 0:03:39]} 15. Nbc3 {[%emt 0:01:43]} Bd4 {[%emt 0:05:16]} 16. Bb5 {[%emt 0:02:11]} c6 {[%emt 0:02:23]} 17. Ba4 {[%emt 0:01:38]} b5 {[%emt 0:01:19]} 18. Nxb5 {[%emt 0:01:21]} cxb5 {[%emt 0:02:33]} 19. Bb3 {[%emt 0:00:37]} a5 {[%emt 0:04:50]} 20. a3 {[%emt 0:01:19]} Qa7 {[%emt 0:00:49]} 21. Rf1 {[%emt 0:01:13]} b4 {[%emt 0:01:04]} 22. axb4 {[%emt 0:02:16]} Ba6 {[%emt 0:02:50]} 23. Rxa5 {[%emt 0:00:14]} Qb7 {[%emt 0:00:34]} 24. Rd1 {[%emt 0:01:32]} Nc6 {[%emt 0:02:09]} 25. Nf6+ {[%emt 0:00:13]} Bxf6 {[%emt 0:00:35]} 26. Bxf6 {[%emt 0:01:43]} Nxa5 {[%emt 0:01:32]} 27. Qxg6 {[%emt 0:00:09]} Nxb3 {[%emt 0:00:42]} 28. Qxg7# {[%emt 0:00:08] normal} 1-0

[Event "DVM U12w 2023"]
[Site "Magdeburg"]
[Date "2023.12.28"]
[Round "3"]
[White "Briese, Sophie"]
[Black "Busch, Lara Sophie"]
[Result "1/2-1/2"]
[WhiteElo "1207"]
[BlackElo "1330"]
[PlyCount "58"]
[EventDate "2022.12.27"]
[EventType "team-tourn"]
[EventRounds "7"]
[EventCountry "GER"]
[TimeControl "40/5400+30:1800+30"]
[WhiteClock "1:06:43"]
[BlackClock "0:49:09"]

1. e4 {[%emt 0:00:02]} e5 {[%emt 0:00:04]} 2. Nf3 {[%emt 0:00:06]} Nc6 {[%emt 0:00:06]} 3. Bc4 {[%emt 0:00:09]} Bc5 {[%emt 0:00:09]} 4. c3 {[%emt 0:00:05]} Nf6 {[%emt 0:00:07]} 5. d4 {[%emt 0:00:09]} exd4 {[%emt 0:00:09]} 6. e5 {[%emt 0:00:05]} d5 {[%emt 0:00:12]} 7. Bb5 {[%emt 0:00:22]} Ne4 {[%emt 0:00:29]} 8. cxd4 {[%emt 0:00:09]} Bb6 {[%emt 0:00:15]} 9. Nc3 {[%emt 0:00:35]} Bg4 {[%emt 0:01:47]} 10. Bxc6+ {[%emt 0:01:03]} bxc6 {[%emt 0:00:18]} 11. Be3 {[%emt 0:00:32]} Ba5 {[%emt 0:01:24]} 12. Qd3 {[%emt 0:02:15]} Rb8 {[%emt 0:04:36]} 13. Bc1 {[%emt 0:01:59]} O-O {[%emt 0:02:00]} 14. O-O {[%emt 0:00:51]} Bf5 {[%emt 0:01:54]} 15. Qe3 {[%emt 0:02:08]} Nxc3 {[%emt 0:02:28]} 16. bxc3 {[%emt 0:00:27]} Re8 {[%emt 0:01:06]} 17. Bd2 {[%emt 0:02:01]} h6 {[%emt 0:05:23]} 18. Rac1 {[%emt 0:01:53]} Qd7 {[%emt 0:01:40]} 19. Qf4 {[%emt 0:01:55]} Be4 {[%emt 0:03:29]} 20. Qg3 {[%emt 0:01:37]} Re6 {[%emt 0:03:16]} 21. Nh4 {[%emt 0:02:14]} Kf8 {[%emt 0:04:09]} 22. f4 {[%emt 0:01:08]} f5 {[%emt 0:02:20]} 23. Rfd1 {[%emt 0:05:28]} Qf7 {[%emt 0:02:42]} 24. c4 {[%emt 0:01:54]} Bxd2 {[%emt 0:00:55]} 25. Rxd2 {[%emt 0:00:13]} Qh5 {[%emt 0:07:02]} 26. cxd5 {[%emt 0:01:18]} Bxd5 {[%emt 0:00:50]} 27. Qa3+ {[%emt 0:01:13]} Re7 {[%emt 0:01:49]} 28. Qh3 {[%emt 0:02:00]} Be4 {[%emt 0:02:54]} 29. Rf2 {[%emt 0:04:26]} Qg4 {[%emt 0:02:18] normal} 1/2-1/2